bitfinex-derivatives/quotes_ETHF0:USTF0_20241022
["timestamp","ask_amount","ask_price","bid_price","bid_amount"]
[1729575006903,4.5678,2645.5,2645.4,1.73818]
[1729575011417,3.2078,2645.5,2645.4,1.73818]
[1729575011704,11.158,2646.2,2645.7,0.37814]
[1729575011705,3.2078,2645.8,2645.7,0.37814]
[1729575011902,13.453,2646.2,2645.7,1.36]
[1729575012102,2.295,2646.2,2646.1,1.73808]
[1729575012298,5.56295631,2646.2,2646.1,1.73808]
[1729575013612,5.5028,2646.2,2646.1,1.73808]
[1729575013813,5.5629573,2646.2,2646.1,1.73808]
[1729575015012,4.6279573,2646.2,2646.1,1.73808]
[1729575015220,3.2078,2646.2,2646.1,1.73808]
[1729575016221,3.2078,2646.2,2646.1,42.53808]
[1729575018519,0.935,2646.3,2646.2,0.37807]
[1729575018826,4.1428,2646.3,2646.2,1.73807]
[1729575019025,3.2078,2646.3,2646.2,6.4992]
[1729575019222,3.2078,2646.3,2646.2,6.87727]
[1729575019416,3.2078,2646.3,2646.2,5.51727]
[1729575020430,3.2078,2646.3,2646.2,6.87727]
[1729575020619,3.2078,2646.3,2646.2,5.51727]
[1729575020820,3.2078,2646.3,2646.2,6.87727]
[1729575021025,3.2078,2646.8,2646.7,0.37799]
[1729575021230,3.2078,2646.8,2646.7,1.73799]
[1729575022626,3.2078,2646.8,2646.7,5.51639]
[1729575027030,3.2078,2646.8,2646.7,1.73799]
[1729575027235,3.2078,2646.8,2646.7,5.51639]
[1729575029839,0.37789,2647.5,2647.0,0.37795]
[1729575029840,3.2078,2647.1,2647.0,0.37795]
[1729575030040,3.2078,2647.1,2647.0,1.73795]
[1729575030238,3.2078,2647.1,2647.0,6.87555]
[1729575030441,4.181,2648.1,2647.3,0.37791]
[1729575030442,3.2078,2647.4,2647.3,0.37791]
[1729575030646,3.2078,2647.4,2647.3,42.53791]
[1729575030838,3.2078,2647.4,2647.3,46.31551]
[1729575032645,1.73784,2647.8,2647.3,45.9376]
[1729575032843,1.73784,2647.8,2647.7,1.73785]
[1729575033047,1.7979602,2647.8,2647.7,1.73785]
[1729575033247,5.00576019,2647.8,2647.7,1.73785]
[1729575033842,4.62791876,2647.8,2647.7,1.73785]
[1729575034349,4.5678,2647.8,2647.7,1.73785]
[1729575039140,4.5678,2647.8,2647.6,1.36]
[1729575039338,1.73786,2647.7,2647.5,1.73788]
[1729575039543,1.36,2647.6,2647.5,1.73788]
[1729575041451,1.36,2647.6,2646.2,1.4862483]
[1729575041452,0.37792,2647.3,2647.0,0.37795]
[1729575041743,4.5678,2647.1,2647.0,1.73795]
[1729575046952,4.5678,2647.1,2646.9,1.73796]
[1729575046953,8.3454,2647.1,2646.9,1.73796]
[1729575047147,1.36,2647.0,2646.9,1.73796]
[1729575047347,1.36,2647.0,2646.8,0.37797]
[1729575047546,1.36,2646.9,2646.8,0.37797]
[1729575048051,5.1384,2646.9,2646.8,0.37797]
[1729575049353,5.1384,2646.9,2646.8,1.73797]
[1729575050949,8.3462,2646.9,2646.8,1.73797]
[1729575056458,8.40634002,2646.9,2646.8,1.73797]
[1729575057464,8.40634,2646.9,2646.8,1.73797]
[1729575058161,4.62794,2646.9,2646.8,1.73797]
[1729575058360,1.42014001,2646.9,2646.8,1.73797]
[1729575058666,4.62794001,2646.9,2646.8,1.73797]
[1729575060861,4.62793909,2646.9,2646.8,1.73797]
[1729575062261,3.26793909,2646.9,2646.8,1.73797]
[1729575062665,3.2078,2646.9,2646.8,1.73797]
[1729575063056,3.2078,2646.9,2646.8,5.51637]
[1729575063567,3.2078,2646.9,2646.8,46.31637]
[1729575064056,3.2078,2646.9,2646.8,42.53797]
[1729575066365,1.36,2647.3,2647.2,0.37792]
[1729575066561,4.62792935,2647.3,2647.2,1.73792]
[1729575067072,4.62792935,2647.3,2647.1,1.73793]
[1729575067264,1.42012935,2647.2,2647.1,1.73793]
[1729575067562,3.2078,2647.3,2647.2,0.37792]
[1729575067768,4.5678,2647.3,2647.2,0.37792]
[1729575068165,4.62792887,2647.3,2647.2,0.37792]
[1729575068366,4.62792887,2647.3,2647.1,1.73792]
[1729575068569,4.62792887,2647.3,2647.2,0.37792]
[1729575068776,4.62792894,2647.3,2647.2,0.37792]
[1729575069379,4.5678,2647.3,2647.2,0.37792]
[1729575069580,4.62792881,2647.3,2647.2,0.37792]
[1729575072874,4.6279295,2647.3,2647.2,0.37792]
[1729575073075,1.4201295,2647.3,2647.2,0.37792]
[1729575073281,4.6279295,2647.3,2647.2,0.37792]
[1729575076389,4.6279295,2647.3,2647.1,1.36]
[1729575076589,1.4201295,2647.2,2647.1,1.73793]
[1729575076887,1.42013141,2647.2,2647.1,0.37793]
[1729575078887,4.62793141,2647.2,2647.1,0.37793]
[1729575080792,4.5678,2647.2,2647.1,0.37793]
[1729575080991,4.62793139,2647.2,2647.1,0.37793]
[1729575081487,4.62793127,2647.2,2647.1,0.37793]
[1729575084780,4.62793172,2647.2,2647.1,0.37793]
[1729575085695,1.42013172,2647.2,2647.1,0.37793]
[1729575085888,4.62793172,2647.2,2647.1,0.37793]
[1729575086087,9.76553172,2647.2,2646.8,40.8]
[1729575086388,3.2078,2646.9,2646.8,0.37798]
[1729575087694,3.2078,2646.9,2646.8,1.73798]
[1729575088497,0.929,2647.1,2647.0,0.37795]
[1729575088698,4.1368,2647.1,2647.0,1.73795]
[1729575088892,4.19693212,2647.1,2647.0,1.73795]
[1729575092799,4.19693029,2647.1,2647.0,1.73795]
[1729575093299,4.1368,2647.1,2647.0,1.73795]
[1729575093500,4.19693151,2647.1,2647.0,1.73795]
[1729575094801,4.1368,2647.1,2647.0,1.73795]
[1729575094996,5.556931,2647.1,2647.0,0.37795]
[1729575095499,5.55693105,2647.1,2647.0,1.73795]
[1729575096804,4.25706175,2647.1,2647.0,1.73795]
[1729575097100,4.19693073,2647.1,2647.0,1.73795]
[1729575097700,0.98913073,2647.1,2647.0,1.73795]
[1729575099200,0.06013073,2647.1,2647.0,1.73795]
[1729575102694,3.2078,2647.2,2647.1,0.37794]
[1729575102895,3.2078,2647.2,2647.1,1.73794]
[1729575103107,3.2078,2647.2,2647.1,5.51554]
[1729575104007,3.2078,2647.2,2647.1,1.73794]
[1729575104205,3.2078,2647.2,2647.1,5.51554]
[1729575108808,1.36,2647.5,2647.4,0.37789]
[1729575109008,4.62792378,2647.5,2647.4,1.73789]
[1729575110016,1.42012378,2647.5,2647.4,1.73789]
[1729575110219,4.62792378,2647.5,2647.4,1.73789]
[1729575112716,4.62792368,2647.5,2647.4,1.73789]
[1729575116712,4.62792406,2647.5,2647.4,1.73789]
[1729575117220,4.5678,2647.5,2647.4,1.73789]
[1729575117420,4.68804744,2647.5,2647.4,1.73789]
[1729575117719,4.68804756,2647.5,2647.4,1.73789]
[1729575118113,4.68804756,2647.5,2646.7,0.98468517]
[1729575118426,4.5678,2647.2,2647.1,1.73794]
[1729575120418,4.5678,2647.2,2647.1,0.37794]
[1729575120725,4.5678,2647.2,2647.1,1.73794]
[1729575120922,4.62792913,2647.2,2647.1,1.73794]
[1729575121320,4.62792927,2647.2,2647.1,1.73794]
[1729575121519,4.5678,2647.2,2647.1,1.73794]
[1729575121917,3.2078,2647.2,2647.1,1.73794]
[1729575124534,4.5678,2647.2,2647.1,1.73794]
[1729575125033,4.62792873,2647.2,2647.1,1.73794]
[1729575127528,4.62792781,2647.2,2647.1,1.73794]
[1729575128021,4.6279282,2647.2,2647.1,1.73794]
[1729575128823,4.5678,2647.2,2647.1,1.73794]
[1729575129024,4.62792818,2647.2,2647.1,1.73794]
[1729575131328,3.2078,2647.2,2647.1,1.73794]
[1729575131631,3.26792792,2647.2,2647.1,1.73794]
[1729575132133,3.2078,2647.2,2647.1,1.73794]
[1729575133426,4.5678,2647.2,2647.1,1.73794]
[1729575134226,4.62792874,2647.2,2647.1,1.73794]
[1729575134427,4.62792914,2647.2,2647.1,1.73794]
[1729575135333,4.5678,2647.2,2647.1,1.73794]
[1729575135628,4.62792931,2647.2,2647.1,1.73794]
[1729575135829,4.5678,2647.2,2647.1,1.73794]
[1729575136425,4.62792927,2647.2,2647.1,1.73794]
[1729575138632,4.62792928,2647.2,2647.1,1.73794]
[1729575139333,4.5678,2647.2,2647.1,1.73794]
[1729575139536,4.6880585,2647.2,2647.1,1.73794]
[1729575140135,1.48025849,2647.2,2647.1,1.73794]
[1729575140338,4.62792925,2647.2,2647.1,1.73794]
[1729575140529,3.26792925,2647.2,2647.1,1.73794]
[1729575143133,3.2078,2647.2,2647.1,1.73794]
[1729575144433,2.288,2647.3,2647.1,1.36]
[1729575144632,2.288,2647.3,2647.2,0.37792]
[1729575144833,5.55592799,2647.3,2647.2,0.37792]
[1729575145325,2.34812799,2647.3,2647.2,0.37792]
[1729575145531,5.55592799,2647.3,2647.2,0.37792]
[1729575146546,2.34812799,2647.3,2647.2,0.37792]
[1729575147029,5.55592799,2647.3,2647.2,0.37792]
[1729575149232,2.34812799,2647.3,2647.2,0.37792]
[1729575149437,5.55592799,2647.3,2647.2,0.37792]
[1729575149829,2.34812799,2647.3,2647.2,0.37792]
[1729575150033,5.55592799,2647.3,2647.2,0.37792]
[1729575151534,5.55592792,2647.3,2647.2,0.37792]
[1729575152135,5.55592807,2647.3,2647.2,0.37792]
[1729575152635,5.555928,2647.3,2647.2,0.37792]
[1729575154539,4.627928,2647.3,2647.2,0.37792]
[1729575154746,5.553928,2647.3,2647.2,0.37792]
[1729575155133,2.346128,2647.3,2647.2,0.37792]
[1729575155341,5.553928,2647.3,2647.2,0.37792]
[1729575155538,5.55392815,2647.3,2647.2,0.37792]
[1729575156540,2.34612815,2647.3,2647.2,0.37792]
[1729575156945,5.55392815,2647.3,2647.2,0.37792]
[1729575158054,2.34612815,2647.3,2647.2,0.37792]
[1729575158256,5.55392815,2647.3,2647.2,0.37792]
[1729575158954,5.55392792,2647.3,2647.2,0.37792]
[1729575159547,2.34612789,2647.3,2647.2,0.37792]
[1729575159749,5.55392789,2647.3,2647.2,0.37792]
[1729575161753,4.19392789,2647.3,2647.2,0.37792]
[1729575163565,4.1338,2647.3,2647.2,0.37792]
[1729575163762,4.19392767,2647.3,2647.2,0.37792]
[1729575164254,4.19392753,2647.3,2647.2,0.37792]
[1729575166958,0.98612753,2647.3,2647.2,0.37792]
[1729575167158,4.19392753,2647.3,2647.2,0.37792]
[1729575167559,4.1338,2647.3,2647.2,0.37792]
[1729575167765,4.19392753,2647.3,2647.2,0.37792]
[1729575169367,0.98612753,2647.3,2647.2,0.37792]
[1729575169566,4.19392753,2647.3,2647.2,0.37792]
[1729575170061,0.98612753,2647.3,2647.2,0.37792]
[1729575170266,4.19392753,2647.3,2647.2,0.37792]
[1729575170566,0.926,2647.3,2647.2,0.37792]
[1729575170760,4.1338,2647.3,2647.2,0.37792]
[1729575171867,5.4938,2647.3,2647.0,0.98468517]
[1729575172066,1.36,2647.1,2646.8,0.98468517]
[1729575172370,4.5678,2646.9,2646.8,1.73798]
[1729575175578,1.36,2646.9,2646.8,1.73798]
[1729575180173,1.36,2646.9,2646.8,0.37798]
[1729575180372,1.36,2646.9,2646.8,1.73798]
[1729575185681,1.42013427,2646.9,2646.8,1.73798]
[1729575186378,1.42013409,2646.9,2646.8,1.73798]
[1729575186677,1.42013409,2646.9,2646.8,0.37798]
[1729575186885,1.36,2646.9,2646.8,0.37798]
[1729575187083,1.42013503,2646.9,2646.8,0.37798]
[1729575188387,1.42013503,2646.9,2646.8,1.73798]
[1729575189083,1.42013499,2646.9,2646.8,1.73798]
[1729575189481,1.48026998,2646.9,2646.8,1.73798]
[1729575190878,1.48026999,2646.9,2646.8,1.73798]
[1729575191084,1.48026999,2646.9,2646.8,42.53798]
[1729575191988,1.48026999,2646.9,2646.8,0.37798]
[1729575193385,1.48026999,2646.9,2646.8,1.73798]
[1729575193587,1.420135,2646.9,2646.8,1.73798]
[1729575193785,1.420135,2646.9,2646.8,0.37798]
[1729575194889,1.42013784,2646.9,2646.8,0.37798]
[1729575195283,4.62793784,2646.9,2646.8,0.37798]
[1729575198684,4.62793784,2646.9,2646.5,40.8]
[1729575198886,4.5678,2646.6,2646.2,2.34468517]
[1729575199194,4.5678,2646.6,2646.5,0.37802]
[1729575199195,3.2078,2646.6,2646.5,0.37802]
[1729575199381,3.2078,2646.6,2645.9,5.13773517]
[1729575199382,0.37803,2646.5,2646.3,0.37805]
[1729575199587,0.06014973,2646.4,2646.3,0.37805]
[1729575199786,0.06014973,2646.5,2646.0,0.94524]
[1729575199986,3.2078,2646.3,2646.2,0.37807]
[1729575200290,3.26794973,2646.3,2646.2,0.37807]
[1729575200493,4.62794973,2646.3,2646.2,0.37807]
[1729575200992,0.37807,2646.2,2645.9,3.5859]
[1729575201196,1.36,2646.0,2645.9,3.5859]
[1729575201494,2.283,2646.0,2645.9,3.5859]
[1729575205196,5.4908,2646.0,2645.8,0.37812]
[1729575205392,1.36,2645.9,2645.7,41.17813]
[1729575205586,1.42016455,2645.8,2645.7,41.17813]
[1729575205991,3.15828455,2645.8,2645.7,40.8]
[1729575206197,6.93828455,2645.8,2645.5,0.37816]
[1729575206399,1.36,2645.6,2645.5,0.37816]
[1729575206789,1.36,2645.6,2645.4,40.8]
[1729575207098,1.36,2645.7,2645.4,40.8]
[1729575207099,1.36,2645.5,2645.4,0.37817]
[1729575209100,1.36,2645.5,2645.4,1.73817]
[1729575214299,1.36,2645.5,2645.4,0.37817]
[1729575230416,1.73817,2645.5,2645.4,0.37817]
[1729575230616,1.42017507,2645.5,2645.4,0.37817]
[1729575230825,1.36,2645.5,2645.4,0.37817]
[1729575231020,1.42017525,2645.5,2645.4,0.37817]
[1729575231926,4.62797525,2645.5,2645.4,0.37817]
[1729575232317,4.5678,2645.5,2645.4,0.37817]
[1729575232523,4.62797428,2645.5,2645.4,0.37817]
[1729575233129,1.42017428,2645.5,2645.4,0.37817]
[1729575233327,4.62797428,2645.5,2645.4,0.37817]
[1729575233518,4.5678,2645.5,2645.4,0.37817]
[1729575233830,4.62797425,2645.5,2645.4,0.37817]
[1729575235026,4.62797506,2645.5,2645.4,0.37817]
[1729575235226,4.5678,2645.5,2645.4,0.37817]
[1729575235732,4.62797368,2645.5,2645.4,0.37817]
[1729575236125,4.62797368,2645.5,2645.1,40.8]
[1729575236321,1.36,2645.2,2645.1,0.37822]
[1729575238022,1.36,2645.2,2645.1,1.73822]
[1729575238227,1.36,2645.2,2645.1,1.36]
[1729575238430,1.36,2645.2,2645.1,1.73822]
[1729575239725,1.36,2645.2,2645.1,1.36]
[1729575239927,1.36,2645.2,2645.1,1.73822]
[1729575240933,3.2078,2645.4,2645.1,5.1408]
[1729575241126,4.5678,2645.4,2645.3,1.73819]
[1729575241331,4.5678,2645.4,2645.3,0.37819]
[1729575246422,1.36,2645.4,2645.3,0.37819]
[1729575246629,4.5678,2645.4,2645.3,0.37819]
[1729575250237,1.36,2645.4,2645.3,0.37819]
[1729575250431,4.5678,2645.4,2645.3,1.36287517]
[1729575250731,4.5678,2645.4,2645.3,0.37819]
[1729575251434,1.36,2645.4,2645.3,0.37819]
[1729575251635,4.5678,2645.4,2645.3,0.37819]
[1729575252232,1.36,2645.4,2645.3,0.37819]
[1729575252431,4.5678,2645.4,2645.3,0.37819]
[1729575253629,3.2078,2645.4,2645.3,1.73819]
[1729575253932,4.5678,2645.4,2645.3,1.73819]
[1729575254131,4.5678,2645.4,2645.3,2.72287517]
[1729575254739,4.5678,2645.4,2645.3,1.36287517]
[1729575255633,4.5678,2645.4,2645.3,0.37819]
[1729575257134,4.5678,2645.4,2645.3,1.36287517]
[1729575257536,4.5678,2645.4,2645.3,0.37819]
[1729575258143,1.36,2645.4,2645.3,0.37819]
[1729575258541,1.36,2645.4,2645.3,1.36287517]
[1729575259039,4.5678,2645.4,2645.3,1.36287517]
[1729575260438,1.36,2645.4,2645.3,1.36287517]
[1729575260640,4.5678,2645.4,2645.3,1.36287517]
[1729575262447,4.5678,2645.4,2645.3,0.37819]
[1729575262641,4.5678,2645.4,2645.3,1.36287517]
[1729575263645,4.5678,2645.4,2645.3,2.14225672]
[1729575263946,4.5678,2645.4,2645.3,3.13158128]
[1729575264745,4.5678,2645.4,2645.3,3.13160409]
[1729575265138,4.5678,2645.4,2645.3,2.14225672]
[1729575265743,4.5678,2645.4,2645.3,3.61928448]
[1729575266545,4.5678,2645.4,2645.3,3.61928524]
[1729575270151,1.29814,2645.7,2645.3,4.60109524]
[1729575270152,1.36,2645.5,2645.3,4.60109524]
[1729575270353,3.2078,2645.7,2645.6,0.37815]
[1729575270650,4.5678,2645.7,2645.6,0.37815]
[1729575272143,1.36,2645.7,2645.6,0.37815]
[1729575279250,1.36,2645.7,2645.3,0.98907314]
[1729575279251,2.78016696,2645.7,2645.3,0.98907314]
[1729575279457,1.36,2645.4,2645.3,1.36726314]
[1729575281156,1.36,2645.4,2645.3,3.61799993]
[1729575285659,1.36,2645.4,2645.3,1.36697237]
[1729575289261,1.36,2645.4,2645.3,3.13035269]
[1729575289654,1.36,2645.4,2645.3,1.36697237]
[1729575289855,1.36,2645.4,2645.3,0.37819]
[1729575292761,1.36,2645.4,2645.3,1.36697237]
[1729575292963,1.36,2645.4,2645.3,3.13091704]
[1729575294961,1.36,2645.4,2645.3,3.13104887]
[1729575295364,1.36,2645.4,2645.3,3.1310445]
[1729575295963,1.36,2645.4,2645.3,1.36697237]
[1729575296162,1.36,2645.4,2645.3,3.13105165]
[1729575297465,1.36,2645.4,2645.3,1.36697237]
[1729575297767,1.36,2645.4,2645.3,3.13113625]
[1729575298469,1.36,2645.4,2645.3,1.36697237]
[1729575298658,3.2078,2645.6,2645.5,0.37817]
[1729575298659,3.58596,2645.6,2645.5,0.37817]
[1729575298965,4.5678,2645.6,2645.5,0.37817]
[1729575299164,5.00612429,2645.6,2645.5,0.37817]
[1729575299365,4.94595,2645.6,2645.5,0.37817]
[1729575299766,4.5678,2645.6,2645.5,0.37817]
[1729575299972,4.94595,2645.6,2645.5,0.37817]
[1729575300467,4.5678,2645.6,2645.5,0.37817]
[1729575301262,5.4858,2645.6,2645.5,0.37817]
[1729575302659,4.1258,2645.6,2645.5,0.37817]
[1729575302865,5.4858,2645.6,2645.5,0.37817]
[1729575303965,3.2078,2645.6,2645.5,0.37817]
[1729575304263,4.5678,2645.6,2645.5,0.37817]
[1729575304768,4.5678,2645.6,2645.5,1.36695237]
[1729575307071,1.36,2645.6,2645.5,1.36695237]
[1729575307766,1.36,2645.6,2645.5,3.61882178]
[1729575308274,3.2078,2645.8,2645.5,8.38065178]
[1729575308573,3.2078,2645.8,2645.7,0.37814]
[1729575308764,3.2078,2645.8,2645.7,1.36713814]
[1729575309277,3.2078,2645.8,2645.7,0.37814]
[1729575310068,4.62796533,2645.8,2645.7,0.37814]
[1729575310271,4.62796752,2645.8,2645.7,0.37814]
[1729575310476,4.62796657,2645.8,2645.7,0.37814]
[1729575313178,1.42016657,2645.8,2645.7,0.37814]
[1729575313375,4.62796657,2645.8,2645.7,0.37814]
[1729575313884,4.5678,2645.8,2645.7,0.37814]
[1729575315787,0.37815,2645.7,2645.5,0.98899814]
[1729575315974,1.73815,2645.6,2645.5,0.98899814]
[1729575316486,1.79832321,2645.6,2645.5,0.98899814]
[1729575316879,1.7983233,2645.6,2645.5,0.98899814]
[1729575317086,1.73815,2645.6,2645.5,0.98899814]
[1729575318592,4.94595,2645.6,2645.5,0.98899814]
[1729575319182,4.5678,2645.6,2645.5,1.36716814]
[1729575321588,4.94595,2645.6,2645.5,1.36716814]
[1729575322286,4.5678,2645.6,2645.5,1.36716814]
[1729575322985,1.36,2645.6,2645.5,1.36716814]
[1729575323188,4.5678,2645.6,2645.5,1.36716814]
[1729575324680,4.5678,2645.6,2645.5,0.37817]
[1729575326087,1.36,2645.6,2645.5,0.37817]
[1729575326281,4.5678,2645.6,2645.5,0.37817]
[1729575327888,4.94595,2645.6,2645.5,0.37817]
[1729575328190,4.5678,2645.6,2645.5,0.37817]
[1729575329088,4.62797135,2645.6,2645.5,0.37817]
[1729575331088,1.42017135,2645.6,2645.5,0.37817]
[1729575331391,4.62797135,2645.6,2645.5,0.37817]
[1729575332385,1.42017133,2645.6,2645.5,0.37817]
[1729575332789,4.62797133,2645.6,2645.5,0.37817]
[1729575334993,1.42017133,2645.6,2645.5,0.37817]
[1729575335186,4.62797133,2645.6,2645.5,0.37817]
[1729575336189,4.5678,2645.6,2645.5,0.37817]
[1729575337288,1.36,2645.6,2645.5,0.37817]
[1729575337483,4.5678,2645.6,2645.5,0.37817]
[1729575337990,1.36,2645.6,2645.5,0.37817]
[1729575338291,4.5678,2645.6,2645.5,0.37817]
[1729575339592,1.36,2645.6,2645.5,0.37817]
[1729575339892,4.5678,2645.6,2645.5,0.37817]
[1729575341894,1.36,2645.6,2645.5,0.37817]
[1729575342091,4.5678,2645.6,2645.5,0.37817]
[1729575348501,1.36,2645.6,2645.5,0.37817]
[1729575348701,4.5678,2645.6,2645.5,0.37817]
[1729575352406,4.5678,2645.6,2645.5,1.36716814]
[1729575352801,4.5678,2645.6,2645.5,0.37817]
[1729575356706,5.4838,2645.6,2645.5,0.37817]
[1729575360311,2.276,2645.6,2645.5,0.37817]
[1729575360907,5.4838,2645.6,2645.5,0.37817]
[1729575361108,5.4838,2645.6,2645.5,1.36716814]
[1729575365302,2.276,2645.6,2645.5,1.36716814]
[1729575365717,5.4838,2645.6,2645.5,1.36716814]
[1729575372117,2.276,2645.6,2645.5,1.36716814]
[1729575372716,5.4838,2645.6,2645.5,1.36716814]
[1729575375817,4.1238,2645.6,2645.5,1.36716814]
[1729575376016,5.4838,2645.6,2645.5,1.36716814]
[1729575376219,5.4838,2645.6,2645.5,0.37817]
[1729575377618,3.2078,2645.6,2645.5,5.51817]
[1729575377820,0.9451,2646.5,2645.8,0.37812]
[1729575377821,4.5678,2645.9,2645.8,0.37812]
[1729575378027,4.5678,2645.9,2645.8,4.98848371]
[1729575378222,4.5678,2645.9,2645.8,7.2826399]
[1729575378519,0.916,2646.3,2646.2,0.37807]
[1729575378821,1.36,2646.3,2646.2,0.37807]
[1729575379018,1.36,2646.3,2646.2,5.14638264]
[1729575379321,1.36,2646.3,2646.2,41.17807]
[1729575380417,0.916,2646.6,2646.5,0.37802]
[1729575380617,0.916,2646.6,2646.2,45.9392]
[1729575380618,1.36,2646.6,2646.3,1.36]
[1729575380817,4.1238,2646.7,2646.6,0.37801]
[1729575381925,5.4838,2646.7,2646.6,0.37801]
[1729575382715,4.5678,2646.7,2646.6,0.37801]
[1729575383823,9.84347641,2647.1,2646.6,1.73801]
[1729575384027,9.84347641,2647.1,2646.9,1.73797]
[1729575384028,4.5678,2647.0,2646.9,1.73797]
[1729575385027,4.5678,2647.0,2646.9,0.37797]
[1729575387026,3.2078,2647.0,2646.9,1.73797]
[1729575387225,1.36,2647.1,2647.0,0.37795]
[1729575387523,1.36,2647.1,2647.0,1.73795]
[1729575388831,1.36,2647.1,2647.0,0.37795]
[1729575389132,5.1376,2647.1,2646.4,1.36]
[1729575389424,1.36,2646.5,2646.4,0.37804]
[1729575389629,1.36,2646.5,2646.3,5.16540174]
[1729575389630,3.2078,2646.7,2646.5,0.37801]
[1729575389831,1.36,2646.6,2646.5,0.37801]
[1729575390519,1.36,2646.6,2646.5,0.37802]
[1729575394028,1.36,2646.6,2646.5,1.73802]
[1729575394228,3.2078,2646.7,2646.6,0.37801]
[1729575394428,4.5678,2646.7,2646.6,0.37801]
[1729575399635,1.36,2646.7,2646.6,0.37801]
[1729575400136,4.5678,2646.7,2646.6,0.37801]
[1729575401935,1.36,2646.7,2646.6,0.37801]
[1729575402133,4.5678,2646.7,2646.6,0.37801]
[1729575406242,1.36,2646.7,2646.6,0.37801]
[1729575406444,4.5678,2646.7,2646.6,0.37801]
[1729575406836,1.36,2646.7,2646.6,0.37801]
[1729575407035,4.5678,2646.7,2646.6,0.37801]
[1729575412132,1.36,2646.7,2646.6,0.37801]
[1729575412335,4.5678,2646.7,2646.6,0.37801]
[1729575427244,3.2078,2647.0,2646.6,1.73801]
[1729575427445,3.2078,2647.0,2646.9,0.37797]
[1729575427654,4.62793483,2647.0,2646.9,0.37797]
[1729575430257,4.5678,2647.0,2646.9,0.37797]
[1729575430567,4.62793217,2647.0,2646.9,0.37797]
[1729575432865,1.42013217,2647.0,2646.9,0.37797]
[1729575434165,1.36,2647.0,2646.9,0.37797]
[1729575436372,4.5678,2647.0,2646.9,0.37797]
[1729575439572,3.2078,2647.0,2646.9,1.73797]
[1729575439769,3.2078,2647.0,2646.9,0.37797]
[1729575439971,4.5678,2647.0,2646.9,1.73797]
[1729575441874,1.36,2647.0,2646.9,1.73797]
[1729575442077,4.5678,2647.0,2646.9,1.73797]
[1729575442870,4.5678,2647.0,2646.9,0.37797]
[1729575445573,4.94575,2647.0,2646.9,0.37797]
[1729575445767,4.5678,2647.0,2646.9,0.37797]
[1729575445968,4.94575,2647.0,2646.9,0.37797]
[1729575446173,4.5678,2647.0,2646.9,0.37797]
[1729575447878,5.00589964,2647.0,2646.8,0.37797]
[1729575448072,3.58576,2647.0,2646.9,0.37797]
[1729575448274,3.64589661,2647.0,2646.9,0.37797]
[1729575449374,5.00589661,2647.0,2646.9,0.37797]
[1729575449980,4.94576,2647.0,2646.9,0.37797]
[1729575450379,5.00589489,2647.0,2646.9,0.37797]
[1729575450673,4.5678,2647.0,2646.9,0.37797]
[1729575451075,4.94575,2647.0,2646.9,0.37797]
[1729575451677,4.62793516,2647.0,2646.9,0.37797]
[1729575452175,4.5678,2647.0,2646.9,0.37797]
[1729575455282,1.36,2647.0,2646.9,0.37797]
[1729575455476,4.5678,2647.0,2646.9,0.37797]
[1729575466487,1.36,2647.0,2646.9,0.37797]
[1729575466685,4.5678,2647.0,2646.9,0.37797]
[1729575467085,1.36,2647.0,2646.9,0.37797]
[1729575467490,4.5678,2647.0,2646.9,0.37797]
[1729575476595,1.36,2647.0,2646.9,0.37797]
[1729575476992,4.5678,2647.0,2646.9,0.37797]
[1729575480996,4.6279324,2647.0,2646.9,0.37797]
[1729575481300,4.62793261,2647.0,2646.9,0.37797]
[1729575481797,4.5678,2647.0,2646.9,0.37797]
[1729575481993,4.62793262,2647.0,2646.9,0.37797]
[1729575482996,1.42013262,2647.0,2646.9,0.37797]
[1729575483199,1.42013253,2647.0,2646.9,0.37797]
[1729575483505,4.5678,2647.0,2646.9,0.37797]
[1729575485205,1.36,2647.0,2646.9,0.37797]
[1729575485901,4.5678,2647.0,2646.9,0.37797]
[1729575486500,1.36,2647.0,2646.9,0.37797]
[1729575486704,4.5678,2647.0,2646.9,0.37797]
[1729575488099,1.36,2647.0,2646.9,0.37797]
[1729575488594,1.36,2647.0,2646.9,1.36605396]
[1729575491507,4.5678,2647.1,2647.0,0.37795]
[1729575491903,3.2078,2647.1,2647.0,1.73795]
[1729575492103,3.2078,2647.1,2647.0,8.26422508]
[1729575492409,3.2078,2647.1,2647.0,6.50383213]
[1729575492598,3.2078,2647.1,2647.0,8.26420508]
[1729575492798,3.2078,2647.1,2647.0,8.26419822]
[1729575493399,3.2078,2647.1,2647.0,6.50383213]
[1729575493900,3.2078,2647.1,2647.0,8.26402178]
[1729575495408,3.2078,2647.1,2647.0,6.50383213]
[1729575495908,1.36,2647.3,2647.0,6.12588213]
[1729575496104,4.5678,2647.3,2647.2,1.73792]
[1729575496403,4.5678,2647.3,2647.2,0.37792]
[1729575499107,1.36,2647.3,2647.2,0.37792]
[1729575499709,4.5678,2647.3,2647.2,0.37792]
[1729575500303,4.5678,2647.3,2647.2,1.73792]
[1729575500611,3.2078,2647.3,2647.2,1.73792]
[1729575500812,3.2078,2647.3,2647.2,5.51552]
[1729575501313,3.2078,2647.3,2647.2,47.30380213]
[1729575501608,3.2078,2647.3,2647.2,46.31552]
[1729575502413,1.36,2647.5,2647.2,45.9376]
[1729575502716,3.2078,2647.4,2647.3,1.73791]
[1729575503211,3.2078,2647.4,2647.3,5.51551]
[1729575503613,3.2078,2647.4,2647.3,1.73791]
[1729575503912,4.5678,2647.4,2647.3,1.73791]